bitfinex/quotes_BTCUSD_20251207
["timestamp","ask_amount","ask_price","bid_price","bid_amount"]
[1765131873348,0.01736,91543.0,91542.0,0.004]
[1765131873552,0.03439123,91543.0,91542.0,0.004]
[1765131874991,0.01736,91543.0,91542.0,0.00926]
[1765131875374,0.01273586,91550.0,91547.0,0.01092335]
[1765131875744,0.0002,91550.0,91549.0,0.00526]
[1765131876291,0.0002,91550.0,91549.0,0.03272398]
[1765131876851,0.0002,91550.0,91549.0,0.01052]
[1765131877109,0.0002,91550.0,91549.0,0.03272398]
[1765131877670,0.0002,91550.0,91549.0,0.03672398]
[1765131878021,0.0002,91550.0,91549.0,0.03272398]
[1765131878513,0.0002,91550.0,91549.0,0.03372398]
[1765131878853,0.0002,91550.0,91549.0,0.03272398]
[1765131879061,0.0002,91550.0,91549.0,0.03572398]
[1765131879271,0.0002,91550.0,91549.0,0.04172398]
[1765131879524,0.0002,91550.0,91549.0,0.04132398]
[1765131881307,0.0002,91550.0,91549.0,0.03606398]
[1765131881505,0.21865985,91550.0,91549.0,0.009]
[1765131881750,0.0002,91550.0,91549.0,0.009]
[1765131881894,0.21865985,91550.0,91549.0,0.009]
[1765131882436,0.01092311,91549.0,91546.0,0.01092347]
[1765131882636,0.01092311,91549.0,91545.0,0.01092358]
[1765131882637,0.01092323,91548.0,91545.0,0.01092358]
[1765131882812,0.00161287,91549.0,91546.0,0.22939287]
[1765131883011,0.00161287,91549.0,91546.0,0.01092347]
[1765131883399,0.00161287,91549.0,91546.0,0.22939202]
[1765131883606,0.00161287,91549.0,91546.0,0.01092347]
[1765131883840,0.00161287,91549.0,91546.0,0.01292347]
[1765131884515,0.00161287,91549.0,91548.0,0.21846463]
[1765131884941,0.00161287,91549.0,91546.0,0.01492347]
[1765131885157,0.0002,91550.0,91548.0,0.22332463]
[1765131885372,0.0002,91550.0,91549.0,0.03192398]
[1765131885687,0.0002,91550.0,91549.0,0.00486]
[1765131886049,0.0002,91550.0,91547.0,0.01092335]
[1765131886261,0.0002,91550.0,91548.0,0.21846463]
[1765131886488,0.0002,91550.0,91549.0,0.001]
[1765131886914,0.0002,91550.0,91549.0,0.00586]
[1765131887117,0.0002,91550.0,91549.0,0.01072]
[1765131887320,0.0002,91550.0,91549.0,0.03292398]
[1765131887789,0.0002,91550.0,91549.0,0.06182056]
[1765131888218,0.0002,91550.0,91549.0,0.03492398]
[1765131888683,0.0002,91550.0,91549.0,0.03292398]
[1765131888889,0.0002,91550.0,91549.0,1.02421198]
[1765131889102,0.0002,91560.0,91559.0,0.02220398]
[1765131889337,0.0002,91560.0,91559.0,0.37904979]
[1765131889551,0.0002,91560.0,91559.0,0.35492398]
[1765131890305,0.0002,91560.0,91559.0,0.38386015]
[1765131890509,0.0002,91560.0,91559.0,0.35992398]
[1765131890722,0.0002,91560.0,91559.0,0.38385829]
[1765131890934,0.0002,91560.0,91559.0,0.39185829]
[1765131891154,0.0002,91560.0,91559.0,0.36292398]
[1765131891401,0.0002,91570.0,91569.0,0.21841452]
[1765131891629,0.0002,91570.0,91569.0,0.56363452]
[1765131891876,0.0002,91570.0,91569.0,0.5906985]
[1765131892163,0.01091595,91609.0,91569.0,0.5906985]
[1765131892164,0.01091357,91629.0,91613.0,0.01091548]
[1765131892365,0.21827177,91629.0,91615.0,0.00486]
[1765131892556,0.000629,91616.0,91615.0,0.02706398]
[1765131892696,0.000629,91616.0,91615.0,0.03192398]
[1765131893303,0.000629,91616.0,91615.0,0.00972]
[1765131893534,0.000629,91616.0,91615.0,0.35492398]
[1765131893733,0.000629,91616.0,91615.0,0.35792398]
[1765131893931,0.000629,91616.0,91615.0,0.45766498]
[1765131894583,0.000629,91616.0,91615.0,0.50117898]
[1765131894945,0.000629,91616.0,91615.0,0.478975]
[1765131895126,0.000629,91616.0,91615.0,0.36108]
[1765131895324,0.000629,91616.0,91615.0,0.02072]
[1765131895548,0.000629,91616.0,91615.0,0.01586]
[1765131895835,0.000629,91616.0,91615.0,0.04292398]
[1765131896056,0.000629,91616.0,91615.0,0.02072]
[1765131896504,0.000629,91616.0,91615.0,0.03192398]
[1765131896711,0.000629,91616.0,91615.0,0.00972]
[1765131896913,0.000629,91616.0,91615.0,0.01386]
[1765131897135,0.000629,91616.0,91615.0,0.004]
[1765131897346,0.000629,91616.0,91613.0,0.01091548]
[1765131897604,0.01091548,91613.0,91610.0,0.01091583]
[1765131897807,0.01091607,91608.0,91605.0,0.01091643]
[1765131898023,0.01091643,91605.0,91602.0,0.01091679]
[1765131898231,0.00161287,91608.0,91601.0,0.01091691]
[1765131898407,0.00161287,91608.0,91590.0,0.01736]
[1765131898408,0.01091703,91600.0,91594.0,0.21835306]
[1765131898612,0.01091798,91592.0,91589.0,0.01091834]
[1765131898814,0.01091786,91593.0,91590.0,0.01091822]
[1765131899014,0.00161287,91593.0,91585.0,0.02220398]
[1765131899198,0.01091822,91590.0,91582.0,0.01091917]
[1765131899396,0.01091846,91588.0,91584.0,0.01091893]
[1765131899614,0.01091834,91589.0,91585.0,0.01091881]
[1765131899886,0.05887834,91589.0,91585.0,0.01091881]
[1765131900089,0.04796,91589.0,91586.0,0.01091869]
[1765131900254,0.27724615,91589.0,91585.0,0.003]
[1765131900503,0.01091834,91589.0,91585.0,0.01391881]
[1765131900721,0.01091834,91589.0,91588.0,0.00486]
[1765131900722,0.00039527,91589.0,91588.0,0.00486]
[1765131900835,0.00039527,91589.0,91588.0,0.02706398]
[1765131901039,0.00039527,91589.0,91588.0,0.03192398]
[1765131901285,0.00039527,91589.0,91588.0,0.00486]
[1765131901495,0.00039527,91589.0,91588.0,0.00972]
[1765131901715,0.00039527,91589.0,91588.0,0.03192398]
[1765131901852,0.00039527,91589.0,91588.0,0.03237984]
[1765131902256,0.00039527,91589.0,91588.0,0.01017586]
[1765131903063,0.00039527,91589.0,91588.0,0.01772]
[1765131903264,0.00039527,91589.0,91588.0,0.03992398]
[1765131904099,0.00039527,91589.0,91588.0,0.01286]
[1765131904428,0.00039527,91589.0,91588.0,0.01817635]
[1765131904709,0.00039527,91589.0,91588.0,0.01286]
[1765131904947,0.00039527,91589.0,91588.0,0.008]
[1765131905271,0.00039527,91589.0,91588.0,0.003]
[1765131905677,0.00039527,91589.0,91588.0,0.002]
[1765131905878,0.01091881,91585.0,91580.0,0.01091941]
[1765131906078,0.01091881,91585.0,91577.0,0.22931521]
[1765131906079,0.01091905,91583.0,91578.0,0.01091965]
[1765131906295,0.01253168,91585.0,91581.0,0.01091929]
[1765131906724,0.01091929,91581.0,91576.0,0.01091989]
[1765131906893,0.01703123,91583.0,91580.0,0.01091941]
[1765131907309,0.02795028,91583.0,91580.0,0.01091941]
[1765131907522,0.22931897,91576.0,91570.0,0.0109206]
[1765131907725,0.01092024,91573.0,91566.0,0.01092108]
[1765131907928,0.00161287,91576.0,91571.0,0.01092048]
[1765131908126,0.01092024,91573.0,91568.0,0.01092084]
[1765131908332,0.01092036,91572.0,91568.0,0.01092084]
[1765131908560,0.22933334,91570.0,91565.0,0.0109212]
[1765131908762,0.22933334,91570.0,91542.0,0.65071776]
[1765131908763,0.01092144,91563.0,91555.0,0.01092239]
[1765131909098,0.01092144,91563.0,91540.0,0.39919764]
[1765131909099,0.23546484,91562.0,91540.0,0.21848372]
[1765131909239,0.01092203,91558.0,91553.0,0.21845269]
[1765131909451,0.01092251,91554.0,91548.0,0.01092323]
[1765131909650,0.04899,91559.0,91551.0,0.01092287]
[1765131909875,0.01736,91561.0,91558.0,0.01092203]
[1765131910269,0.02828168,91561.0,91557.0,0.01092215]
[1765131910473,0.01736,91561.0,91559.0,0.21843838]
[1765131910650,0.02828168,91561.0,91558.0,0.01104035]
[1765131910850,0.24671724,91561.0,91558.0,0.00011832]
[1765131911370,0.01736,91561.0,91558.0,0.01104035]
[1765131911754,0.01736,91561.0,91559.0,0.001]
[1765131912008,0.02828168,91561.0,91558.0,0.01104035]
[1765131912385,0.01836,91561.0,91558.0,0.01404035]
[1765131912726,0.06206,91559.0,91558.0,0.00311832]
[1765131913000,0.06206,91559.0,91558.0,0.00011832]
[1765131913202,0.06206,91559.0,91558.0,0.00111832]
[1765131913496,0.21843599,91560.0,91558.0,0.00111832]
[1765131913702,0.21843599,91560.0,91558.0,0.00011832]
[1765131913857,0.21843599,91560.0,91558.0,0.00111832]
[1765131914062,0.02828168,91561.0,91558.0,0.00111832]
[1765131914262,0.01703123,91559.0,91558.0,0.00111832]
[1765131914462,0.07909123,91559.0,91558.0,0.00111832]
[1765131914677,0.01736,91561.0,91559.0,0.21843838]
[1765131914930,0.001,91560.0,91559.0,0.21843838]
[1765131915126,0.00161287,91562.0,91559.0,0.23422029]
[1765131915329,0.04818,91581.0,91573.0,0.21840302]
[1765131915528,0.23541439,91583.0,91560.0,0.00486]
[1765131915529,0.01703123,91583.0,91580.0,0.01091941]
[1765131915728,0.01736,91582.0,91580.0,0.01091941]
[1765131915953,0.02827917,91582.0,91577.0,0.01091977]
[1765131916153,0.02827917,91582.0,91578.0,0.22931271]
[1765131916318,0.01091929,91581.0,91578.0,0.01091965]
[1765131916518,0.02827917,91582.0,91578.0,0.01091965]
[1765131916970,0.02827917,91582.0,91577.0,0.01091977]
[1765131917121,0.01092084,91568.0,91564.0,0.02220398]
[1765131917320,0.01092084,91568.0,91553.0,0.00486]
[1765131917321,0.01091977,91577.0,91571.0,0.22932827]
[1765131917618,0.01091977,91577.0,91572.0,0.02220398]
[1765131917819,0.01092036,91572.0,91569.0,0.01092072]
[1765131918019,0.11422123,91583.0,91567.0,0.22933844]
[1765131918020,0.21838595,91581.0,91567.0,0.21841748]
[1765131918265,0.22931097,91579.0,91573.0,0.21840387]
[1765131918443,0.01091953,91579.0,91575.0,0.22931951]
[1765131918645,0.003,91577.0,91575.0,0.22931951]
[1765131918819,0.02827917,91582.0,91576.0,0.01091989]
[1765131918820,0.23574535,91582.0,91576.0,0.01091989]
[1765131919024,0.01091941,91580.0,91576.0,0.01091989]
[1765131919225,0.001,91581.0,91576.0,0.01091989]
[1765131919421,0.01091953,91579.0,91574.0,0.01092013]
[1765131919674,0.01091965,91578.0,91572.0,0.01092036]
[1765131919907,0.01092072,91569.0,91563.0,0.21842824]
[1765131920066,0.0109206,91570.0,91566.0,0.01092108]
[1765131920271,0.0109206,91570.0,91563.0,0.01092144]
[1765131920272,0.01092096,91567.0,91563.0,0.01092144]
[1765131920476,0.0109212,91565.0,91561.0,0.01092168]
[1765131920644,0.01092168,91561.0,91558.0,0.00011832]
[1765131920841,0.21842074,91567.0,91558.0,0.00011832]
[1765131920842,0.01092084,91568.0,91564.0,0.01092132]
[1765131921198,0.0109212,91565.0,91562.0,0.01092156]
[1765131921402,0.01092108,91566.0,91563.0,0.01092144]
[1765131921578,0.01092108,91566.0,91562.0,0.01092156]
[1765131921751,0.02795219,91567.0,91564.0,0.01092132]
[1765131922155,0.01092108,91566.0,91561.0,0.21843361]
[1765131922438,0.01091929,91581.0,91577.0,0.2293147]
[1765131922667,0.26655328,91587.0,91579.0,0.01091953]
[1765131922932,0.11422123,91598.0,91582.0,0.00486]
[1765131922933,0.0109181,91591.0,91582.0,0.00486]
[1765131923170,0.22929063,91587.0,91582.0,0.00486]
[1765131923313,0.01091869,91586.0,91582.0,0.00486]
[1765131923517,0.01091846,91588.0,91585.0,0.01091881]
[1765131923741,0.01091893,91584.0,91579.0,0.01091953]
[1765131923939,0.01091941,91580.0,91575.0,0.01092001]
[1765131924257,0.01091941,91580.0,91567.0,0.01092096]
[1765131924258,0.01092048,91571.0,91567.0,0.01092096]
[1765131924461,0.21841753,91568.0,91563.0,0.22934964]
[1765131924624,0.02795183,91570.0,91567.0,0.01092096]
[1765131924842,0.01736,91602.0,91569.0,0.00486]
[1765131925028,0.01897287,91602.0,91592.0,0.01091798]
[1765131925251,0.01252966,91602.0,91601.0,0.00486]
[1765131925462,0.01091655,91604.0,91601.0,0.00486]
[1765131925463,0.02794659,91614.0,91609.0,0.01091595]
[1765131925658,0.01703123,91614.0,91606.0,0.01091631]
[1765131925862,0.0109156,91612.0,91606.0,0.01091631]
[1765131926115,0.02955946,91614.0,91609.0,0.01091595]
[1765131926289,0.00039527,91612.0,91609.0,0.01091595]
[1765131926434,0.00039527,91612.0,91610.0,0.21831677]
[1765131926638,0.00039527,91612.0,91611.0,0.00486]
[1765131926845,0.00039527,91612.0,91611.0,0.00972]
[1765131927435,0.00039527,91612.0,91611.0,0.03192398]
[1765131927579,0.00039527,91612.0,91611.0,0.33272]
[1765131927777,0.00039527,91612.0,91611.0,0.35592398]
[1765131927985,0.00039527,91612.0,91611.0,0.03292398]
[1765131928189,0.01537969,91637.0,91611.0,0.03292398]
[1765131928416,0.01111226,91640.0,91615.0,0.22316486]
[1765131928624,0.0002,91640.0,91615.0,0.22316486]
[1765131928918,0.01091286,91635.0,91615.0,0.24538486]
[1765131929077,0.01091369,91628.0,91615.0,0.21830486]
[1765131929285,0.01091369,91628.0,91615.0,0.22316486]
[1765131929510,0.01091429,91623.0,91615.0,0.22316486]
[1765131929714,0.04818,91629.0,91615.0,0.22316486]
[1765131930136,0.04818,91629.0,91615.0,0.21830486]
[1765131930137,0.01091429,91623.0,91615.0,0.21830486]
[1765131930338,0.01091393,91626.0,91615.0,0.22530486]
[1765131930516,0.04818,91629.0,91615.0,0.23016486]
[1765131930870,0.21825166,91638.0,91615.0,0.23016486]
[1765131930871,0.0002,91640.0,91615.0,0.22802486]
[1765131931062,0.01091333,91631.0,91615.0,0.23002486]
[1765131931263,0.01091286,91635.0,91615.0,0.23202486]
[1765131931559,0.01091345,91630.0,91615.0,0.23302486]
[1765131931708,0.01091286,91635.0,91615.0,0.23302486]
[1765131931911,0.01091333,91631.0,91615.0,0.22316486]
[1765131932243,0.01091274,91636.0,91615.0,0.22316486]
[1765131932244,0.0109119,91643.0,91615.0,0.57322884]
[1765131932448,0.01091143,91647.0,91615.0,0.55302486]
[1765131932648,0.01091202,91642.0,91615.0,0.75123984]
[1765131932851,0.01091202,91642.0,91615.0,0.65991786]
[1765131933027,0.01091262,91637.0,91615.0,0.55102486]
[1765131933229,0.21822443,91649.0,91615.0,1.09644986]
[1765131933428,0.01091214,91641.0,91615.0,0.77080784]
[1765131933672,0.01091321,91632.0,91615.0,0.57322884]
[1765131933917,0.21826482,91632.0,91615.0,0.25338486]
[1765131934067,0.26645176,91629.0,91615.0,0.27472884]
[1765131934273,0.01091393,91626.0,91615.0,0.27472884]
[1765131934461,0.01091393,91626.0,91615.0,0.25252486]
[1765131934667,0.01091369,91628.0,91615.0,0.24052486]
[1765131934981,0.01091369,91628.0,91615.0,0.23130486]
[1765131934982,0.0109144,91622.0,91615.0,0.23130486]
[1765131935154,0.01091393,91626.0,91615.0,0.23616486]
[1765131935457,0.01091321,91632.0,91615.0,0.23602486]
[1765131935664,0.01091274,91636.0,91615.0,0.23802486]
[1765131936064,0.01111226,91640.0,91615.0,0.25222884]
[1765131936249,0.01091238,91639.0,91615.0,0.59258884]
[1765131936445,0.01091238,91639.0,91615.0,0.59458884]
[1765131936709,0.01091297,91634.0,91615.0,0.59258884]
[1765131936881,0.01091321,91632.0,91615.0,0.59258884]
[1765131937063,0.01091321,91632.0,91615.0,0.59858884]
[1765131937267,0.01091333,91631.0,91615.0,0.25736884]
[1765131937604,0.01091297,91634.0,91615.0,0.25736884]
[1765131937605,0.0002,91640.0,91615.0,0.26222884]
[1765131937783,0.01111226,91640.0,91615.0,0.27558884]
[1765131938189,0.01111226,91640.0,91615.0,0.28058884]
[1765131938395,0.0002,91640.0,91615.0,0.28058884]
[1765131938590,0.0002,91640.0,91615.0,1.05666284]
[1765131938982,0.0002,91640.0,91615.0,1.06066284]
[1765131939186,0.0002,91640.0,91615.0,1.05266284]
[1765131939407,0.0002,91640.0,91615.0,1.05566284]
[1765131939584,0.0002,91640.0,91615.0,0.57722884]
[1765131939797,0.01091286,91635.0,91615.0,0.59458884]
[1765131940034,0.01091286,91635.0,91615.0,0.27958884]
[1765131940384,0.01091262,91637.0,91615.0,0.38164484]
[1765131940591,0.01091333,91631.0,91615.0,0.25838486]
[1765131940796,0.0002,91640.0,91615.0,0.25838486]
[1765131940797,3.49e-06,91616.0,91615.0,0.23302486]
[1765131940926,0.0002,91640.0,91637.0,0.22916507]
[1765131941129,0.0002,91640.0,91639.0,0.02706398]
[1765131941548,0.0002,91640.0,91639.0,0.00972]
[1765131941753,0.0002,91640.0,91639.0,0.04928398]
[1765131942419,0.0002,91650.0,91649.0,0.21822387]
[1765131942694,0.0002,91650.0,91649.0,0.24528785]
[1765131942868,0.0002,91650.0,91649.0,0.25014785]
[1765131943469,0.0002,91650.0,91649.0,0.22794387]
[1765131943675,0.0002,91650.0,91649.0,0.25014785]
[1765131943831,0.0002,91650.0,91649.0,0.57614785]
[1765131944348,0.0002,91650.0,91649.0,0.55594387]
[1765131944549,0.0002,91650.0,91649.0,0.57814785]
[1765131946695,0.0002,91650.0,91649.0,0.23294387]
[1765131946897,0.0002,91650.0,91649.0,0.24544387]
[1765131947096,0.00099194,91650.0,91649.0,0.26764785]
[1765131947522,0.00099194,91650.0,91649.0,0.27250785]
[1765131947718,0.00099194,91650.0,91649.0,0.27050785]
[1765131948122,0.00099194,91650.0,91649.0,0.27250785]
[1765131948746,0.00099194,91650.0,91649.0,0.59550785]
[1765131949307,0.00099194,91650.0,91649.0,0.59350785]
[1765131949704,0.00099194,91650.0,91649.0,0.55694387]
[1765131949904,0.00099194,91650.0,91649.0,0.24644387]
[1765131950110,0.00099194,91650.0,91649.0,0.26264785]
[1765131950322,0.00199194,91650.0,91649.0,0.26264785]
[1765131950576,0.00199194,91650.0,91649.0,0.26564785]
[1765131950721,0.00199194,91650.0,91649.0,0.27050785]
[1765131950927,0.00199194,91650.0,91649.0,0.26750785]
[1765131951338,0.00199194,91650.0,91649.0,0.26850785]
[1765131951541,0.00099194,91650.0,91649.0,0.26850785]
[1765131951963,0.00199194,91650.0,91649.0,0.26850785]
[1765131952176,0.00099194,91650.0,91649.0,0.26364785]
[1765131952668,0.00299194,91650.0,91649.0,0.26264785]
[1765131953039,0.00299194,91650.0,91649.0,0.26464785]
[1765131953839,0.00299194,91650.0,91649.0,0.26950785]
[1765131954433,0.00299194,91650.0,91649.0,0.24730387]
[1765131954630,0.00299194,91650.0,91649.0,0.26950785]
[1765131955285,0.00299194,91650.0,91649.0,1.59252687]
[1765131955464,0.00299194,91650.0,91649.0,1.61473085]
[1765131956062,0.0002,91680.0,91679.0,0.21815246]
[1765131956235,0.0002,91680.0,91679.0,0.22301246]
[1765131956454,0.0002,91680.0,91679.0,0.22787246]
[1765131957022,0.0002,91680.0,91679.0,0.22301246]
[1765131957226,0.0002,91680.0,91679.0,0.00011832]
[1765131957427,0.0002,91680.0,91679.0,0.00497832]
[1765131957735,0.0002,91680.0,91679.0,0.00011832]
[1765131958916,0.0042,91680.0,91679.0,0.00011832]
[1765131959600,0.06845287,91680.0,91679.0,0.00011832]
[1765131959843,0.06845287,91680.0,91679.0,0.00111832]
[1765131959844,0.00581287,91680.0,91679.0,0.00111832]
[1765131960334,0.00581287,91680.0,91679.0,0.00011832]
[1765131960557,0.16363287,91680.0,91679.0,0.00111832]
[1765131960767,0.17901256,91680.0,91679.0,0.00111832]
[1765131961406,0.17901256,91680.0,91679.0,0.00011832]
[1765131961606,0.19721654,91680.0,91679.0,0.00011832]
[1765131961827,0.08983256,91680.0,91679.0,0.00011832]
[1765131962126,0.18588734,91680.0,91679.0,0.00011832]
[1765131962730,0.18688734,91680.0,91679.0,0.00011832]
[1765131962946,0.20909132,91680.0,91679.0,0.00011832]
[1765131963141,0.19909132,91680.0,91679.0,0.00011832]
[1765131963354,0.58461431,91680.0,91679.0,0.00011832]
[1765131963560,0.56923462,91680.0,91679.0,0.00011832]
[1765131963983,0.69597091,91680.0,91679.0,0.00011832]
[1765131964346,0.70097091,91680.0,91679.0,0.00011832]
[1765131964672,0.69597091,91680.0,91679.0,0.00011832]
[1765131964875,0.70397091,91680.0,91679.0,0.00011832]
[1765131965101,0.57206187,91680.0,91679.0,0.00011832]
[1765131965433,0.01090798,91676.0,91670.0,0.01090869]
[1765131965599,0.00038168,91679.0,91673.0,0.21816592]
[1765131965809,0.00038168,91679.0,91670.0,0.00011863]
[1765131965810,0.01090774,91678.0,91674.0,0.01090821]
[1765131966022,0.0112893,91679.0,91674.0,0.01090821]
[1765131966023,0.00038168,91679.0,91678.0,0.00486]
[1765131966395,0.00038168,91679.0,91677.0,0.21815585]
[1765131967059,0.00038168,91679.0,91678.0,0.00486]
[1765131967541,0.00038168,91679.0,91678.0,0.00972]
[1765131967771,0.00038168,91679.0,91678.0,0.00486]
[1765131968103,0.00138168,91679.0,91677.0,0.21815585]
[1765131968309,0.00238168,91679.0,91677.0,0.21815585]
[1765131968716,0.00238168,91679.0,91678.0,0.00486]
[1765131969224,0.00138168,91679.0,91678.0,0.00486]
[1765131969610,0.00038168,91679.0,91678.0,0.00486]
[1765131969963,0.00038168,91679.0,91677.0,0.007]
[1765131970170,0.00299455,91679.0,91677.0,0.22515633]
[1765131970522,0.01090786,91677.0,91672.0,0.01090845]
[1765131970722,0.2181715,91671.0,91670.0,0.00011863]
[1765131970950,0.28303678,91671.0,91670.0,0.00011863]
[1765131971163,0.37821678,91671.0,91670.0,0.00011863]
[1765131971797,0.38215678,91671.0,91670.0,0.00011863]
[1765131972207,0.38215678,91671.0,91670.0,0.00611863]
[1765131972376,0.28420678,91671.0,91670.0,0.00611863]
[1765131972994,0.22039678,91671.0,91670.0,0.00611863]
[1765131973207,0.00222528,91671.0,91670.0,0.00611863]
[1765131973561,0.00222528,91671.0,91670.0,0.00011863]
[1765131973753,0.00322528,91671.0,91670.0,0.00011863]
[1765131973975,0.00422528,91671.0,91670.0,0.00011863]
[1765131974178,0.00322528,91671.0,91670.0,0.00011863]
[1765131974381,0.00222528,91671.0,91670.0,0.01097863]
[1765131974691,0.00222528,91671.0,91670.0,0.00497863]
[1765131974901,0.00222528,91671.0,91670.0,0.00597863]
[1765131975041,0.00061241,91671.0,91670.0,0.03904261]
[1765131975746,0.00061241,91671.0,91670.0,0.01197863]
[1765131975950,0.00061241,91671.0,91670.0,0.01097863]
[1765131976158,0.00061241,91671.0,91670.0,0.03804261]
[1765131976435,0.00061241,91671.0,91670.0,0.03904261]
[1765131976848,0.00061241,91671.0,91670.0,0.01197863]
[1765131977754,0.00061241,91671.0,91670.0,0.01683863]
[1765131978506,0.00061241,91671.0,91670.0,0.03904261]
[1765131978912,0.00061241,91671.0,91670.0,0.36204261]
[1765131979123,0.00061241,91671.0,91670.0,0.40051282]
[1765131979355,0.00061241,91671.0,91670.0,1.06125361]
[1765131979857,0.00061241,91671.0,91670.0,1.05425361]
[1765131980053,0.00061241,91671.0,91670.0,1.07125361]
[1765131980450,0.0002,91680.0,91678.0,0.22301484]
[1765131980624,0.91646958,91700.0,91691.0,0.24032789]
[1765131980840,0.91646958,91700.0,91691.0,0.24516391]
[1765131981041,0.91646958,91700.0,91691.0,0.26736789]
[1765131981325,0.0206122,91692.0,91691.0,0.26736789]
[1765131981860,0.0206122,91692.0,91691.0,0.39561789]
[1765131982067,0.0206122,91692.0,91691.0,0.37299589]
[1765131982995,0.0206122,91692.0,91691.0,0.24616391]
[1765131983937,0.0206122,91692.0,91691.0,0.22398391]
[1765131984142,0.0206122,91692.0,91691.0,0.24130391]
[1765131984385,0.0206122,91692.0,91691.0,0.001]
[1765131984604,0.02222507,91692.0,91691.0,0.001]
[1765131984814,0.08603507,91692.0,91691.0,0.001]
[1765131985021,0.01090667,91687.0,91682.0,0.01090726]
[1765131985231,0.01090702,91684.0,91679.0,0.01090762]
[1765131985448,0.00034986,91683.0,91680.0,0.22905716]
[1765131985660,0.0109069,91685.0,91682.0,0.01090726]
[1765131986070,0.0109069,91685.0,91682.0,0.01190726]
[1765131986658,0.008,91683.0,91682.0,0.01090726]
[1765131986892,0.008,91683.0,91680.0,0.0109075]
[1765131987092,0.01090726,91682.0,91679.0,0.01090762]
[1765131987681,0.01090714,91683.0,91680.0,0.0109075]
[1765131987883,0.01090714,91683.0,91681.0,0.01090738]
[1765131987884,0.009,91683.0,91681.0,0.01090738]
[1765131988086,0.009,91683.0,91682.0,0.22300532]
[1765131988829,0.009,91683.0,91682.0,0.00486]
[1765131989237,0.01090702,91684.0,91681.0,0.01090738]
[1765131989441,0.01090643,91689.0,91685.0,0.0109069]
[1765131989655,0.01090655,91688.0,91685.0,0.0109069]
[1765131990075,0.02161287,91692.0,91685.0,0.0109069]
[1765131990247,0.04789863,91692.0,91689.0,0.01090643]
[1765131990507,0.25064084,91692.0,91688.0,0.01090655]
[1765131991092,0.01090667,91687.0,91684.0,0.01090702]
[1765131991495,0.00040816,91685.0,91682.0,0.22905258]
[1765131991694,0.001,91688.0,91683.0,0.01090714]
[1765131991896,0.23003776,91688.0,91684.0,0.01090702]
[1765131992099,0.09795,91687.0,91672.0,0.01090845]
[1765131992298,0.01090798,91676.0,91672.0,0.01090845]
[1765131992506,0.21817126,91672.0,91670.0,0.00011863]
[1765131993036,0.06381,91671.0,91670.0,0.00011863]
[1765131993362,0.16176,91671.0,91670.0,0.00011863]
[1765131994072,0.06381,91671.0,91670.0,0.00011863]
[1765131994692,0.16176,91671.0,91670.0,0.00011863]
[1765131995511,0.17476,91671.0,91670.0,0.00011863]
[1765131995929,0.07681,91671.0,91670.0,0.00011863]
[1765131997654,0.17476,91671.0,91670.0,0.00011863]
[1765131997863,0.07681,91671.0,91670.0,0.00011863]
[1765131998250,0.07481,91671.0,91670.0,0.00011863]
[1765131998448,0.06481,91671.0,91670.0,0.00011863]
[1765131998806,0.06781,91671.0,91670.0,0.00011863]
[1765131998938,0.2181714,91672.0,91670.0,0.00011863]
[1765131999360,0.009,91671.0,91670.0,0.00011863]
[1765131999724,0.002,91671.0,91670.0,0.00011863]
[1765131999922,0.005,91671.0,91670.0,0.00011863]
[1765132000368,0.002,91671.0,91670.0,0.00011863]
[1765132000688,0.2181714,91672.0,91670.0,0.00011863]
[1765132000897,0.01703123,91671.0,91670.0,0.00011863]
[1765132001316,0.08084123,91671.0,91670.0,0.00011863]
[1765132001686,0.08184123,91671.0,91670.0,0.00011863]
[1765132001902,0.17569123,91671.0,91670.0,0.00011863]
[1765132002099,0.004,91671.0,91670.0,0.00011863]
[1765132002301,0.001,91671.0,91670.0,0.00011863]
[1765132002500,0.07955969,91671.0,91670.0,0.00011863]
[1765132002709,0.08355969,91671.0,91670.0,0.00011863]
[1765132003516,0.08355969,91671.0,91670.0,0.02511863]
[1765132003823,0.02037969,91671.0,91670.0,0.02511863]
[1765132004441,0.005,91671.0,91670.0,0.02511863]
[1765132005302,0.02203123,91671.0,91670.0,0.02511863]
[1765132005730,0.08521123,91671.0,91670.0,0.02511863]
[1765132006111,0.005,91671.0,91670.0,0.02511863]
[1765132007079,0.005,91671.0,91670.0,0.24329251]
[1765132007407,0.005,91671.0,91670.0,0.02511863]
[1765132007758,0.06818,91671.0,91670.0,0.02511863]
[1765132007958,0.08355969,91671.0,91670.0,0.02511863]
[1765132008779,0.005,91671.0,91670.0,0.02997863]
[1765132009428,0.005,91671.0,91670.0,0.03483863]
[1765132009738,0.004,91671.0,91670.0,0.03483863]
[1765132009939,0.00023325,91679.0,91676.0,0.01090798]
[1765132010142,0.00023325,91679.0,91678.0,0.00486]
[1765132011192,0.00123325,91679.0,91678.0,0.03192398]
[1765132011911,0.00123325,91679.0,91678.0,0.00972]
[1765132012130,0.00723325,91679.0,91678.0,0.03192398]
[1765132012538,0.00023325,91679.0,91678.0,0.03192398]
[1765132012754,0.00023325,91679.0,91678.0,0.03492398]
[1765132012755,0.00223325,91679.0,91678.0,0.03492398]
[1765132013333,0.00023325,91679.0,91678.0,0.03492398]
[1765132013669,0.00023325,91679.0,91678.0,0.03692398]
[1765132013988,0.00023325,91679.0,91678.0,0.03206398]
[1765132014358,0.00023325,91679.0,91678.0,0.005]
[1765132014558,0.04923325,91679.0,91678.0,0.005]
[1765132014962,0.11241325,91679.0,91678.0,0.002]
[1765132015162,0.12779294,91679.0,91678.0,0.002]
[1765132015375,0.12779294,91679.0,91675.0,0.2290694]
[1765132015976,0.13870056,91679.0,91676.0,0.01090798]
[1765132016201,0.13870056,91679.0,91675.0,0.01090809]
[1765132016404,0.01090833,91673.0,91668.0,0.01090893]
[1765132016643,0.06318,91671.0,91663.0,0.01090952]
[1765132016840,0.06318,91671.0,91662.0,0.21819249]
[1765132017015,0.06318,91671.0,91665.0,0.01090928]
[1765132017016,0.17406123,91671.0,91665.0,0.01090928]
[1765132017175,0.17406123,91671.0,91664.0,0.0109094]
[1765132017677,0.17406123,91671.0,91662.0,0.01090964]
[1765132018072,0.01703123,91671.0,91668.0,0.01090893]
[1765132018485,0.01703123,91671.0,91670.0,0.02611863]
[1765132019074,0.01703123,91671.0,91670.0,0.02511863]
[1765132019250,0.18006123,91671.0,91670.0,0.02511863]
[1765132019461,0.17406123,91671.0,91670.0,0.02511863]
[1765132019653,0.17606123,91671.0,91670.0,0.02511863]
[1765132019893,0.002,91671.0,91670.0,0.02997863]
[1765132020108,0.002,91671.0,91670.0,0.27521649]
[1765132020283,0.003,91671.0,91670.0,0.27521649]
[1765132020441,0.001,91671.0,91670.0,0.27521649]